[Event "Titled Tuesday Blitz August 09 Early 2022"]
[White "Drozdowski, Kacper"]
[Black "Pranav Anand"]
[WhiteFideId "1136720"]
[BlackFideId "46626786"]
[WhiteElo "2485"]
[BlackElo "2300"]
[Result "1/2-1/2"]
[Round "07"]
[TimeControl "180+1"]
[Date "2022.08.09"]
[WhiteClock "0:00:22"]
[BlackClock "0:00:24"]

1. e4 {[%clk 0:03:00]}  g6 {[%clk 0:03:00]} 2. d4 {[%clk 0:03:00]}  Bg7 {[%clk 0:03:01]} 3. Nc3 {[%clk 0:03:00]}  d6 {[%clk 0:03:01]} 4. Be3 {[%clk 0:03:00]}  b6 {[%clk 0:02:59]} 5. f3 {[%clk 0:03:00]}  Bb7 {[%clk 0:03:00]} 6. Qd2 {[%clk 0:03:01]}  e6 {[%clk 0:03:01]} 7. Bc4 {[%clk 0:03:00]}  Nd7 {[%clk 0:03:01]} 8. Nge2 {[%clk 0:03:00]}  h6 {[%clk 0:03:01]} 9. a4 {[%clk 0:02:59]}  a6 {[%clk 0:03:01]} 10. O-O {[%clk 0:02:58]}  Ne7 {[%clk 0:03:01]} 11. Rad1 {[%clk 0:02:57]}  c6 {[%clk 0:02:55]} 12. Ba2 {[%clk 0:02:57]}  d5 {[%clk 0:02:54]} 13. Ng3 {[%clk 0:02:54]}  Qc7 {[%clk 0:02:53]} 14. Nce2 {[%clk 0:02:48]}  h5 {[%clk 0:02:51]} 15. Bf4 {[%clk 0:02:47]}  Qd8 {[%clk 0:02:49]} 16. h4 {[%clk 0:02:39]}  Bf6 {[%clk 0:02:43]} 17. Bg5 {[%clk 0:02:37]}  Bxg5 {[%clk 0:02:39]} 18. Qxg5 {[%clk 0:02:38]}  Ng8 {[%clk 0:02:39]} 19. Qf4 {[%clk 0:02:36]}  Qb8 {[%clk 0:02:26]} 20. c4 {[%clk 0:02:33]}  Qxf4 {[%clk 0:02:22]} 21. Nxf4 {[%clk 0:02:34]}  Ngf6 {[%clk 0:02:16]} 22. cxd5 {[%clk 0:02:23]}  cxd5 {[%clk 0:02:16]} 23. Rfe1 {[%clk 0:01:56]}  Kd8 {[%clk 0:02:03]} 24. exd5 {[%clk 0:01:47]}  exd5 {[%clk 0:02:04]} 25. Nf1 {[%clk 0:01:42]}  Kc7 {[%clk 0:01:55]} 26. Re7 {[%clk 0:01:32]}  Rhf8 {[%clk 0:01:55]} 27. Rc1+ {[%clk 0:01:12]}  Kd6 {[%clk 0:01:54]} 28. Ree1 {[%clk 0:01:13]}  Rac8 {[%clk 0:01:53]} 29. Kf2 {[%clk 0:01:14]}  b5 {[%clk 0:01:49]} 30. a5 {[%clk 0:01:13]}  Nb8 {[%clk 0:01:41]} 31. Ne3 {[%clk 0:01:02]}  Ba8 {[%clk 0:01:20]} 32. Rc3 {[%clk 0:00:54]}  Rxc3 {[%clk 0:01:19]} 33. bxc3 {[%clk 0:00:55]}  Rc8 {[%clk 0:01:19]} 34. Rc1 {[%clk 0:00:52]}  Bb7 {[%clk 0:00:54]} 35. Ke2 {[%clk 0:00:52]}  Nc6 {[%clk 0:00:47]} 36. Kd2 {[%clk 0:00:47]}  Nxa5 {[%clk 0:00:47]} 37. Nd3 {[%clk 0:00:47]}  Rc7 {[%clk 0:00:42]} 38. Nc5 {[%clk 0:00:45]}  Bc8 {[%clk 0:00:42]} 39. Ra1 {[%clk 0:00:44]}  Nc4+ {[%clk 0:00:41]} 40. Bxc4 {[%clk 0:00:43]}  dxc4 {[%clk 0:00:41]} 41. Ra5 {[%clk 0:00:42]}  Ra7 {[%clk 0:00:40]} 42. Ne4+ {[%clk 0:00:39]}  Nxe4+ {[%clk 0:00:38]} 43. fxe4 {[%clk 0:00:40]}  f6 {[%clk 0:00:37]} 44. Nc2 {[%clk 0:00:38]}  Bb7 {[%clk 0:00:35]} 45. Ke3 {[%clk 0:00:38]}  Ra8 {[%clk 0:00:35]} 46. Kf4 {[%clk 0:00:34]}  Re8 {[%clk 0:00:34]} 47. d5 {[%clk 0:00:34]}  Kc5 {[%clk 0:00:33]} 48. Nd4 {[%clk 0:00:29]}  Kb6 {[%clk 0:00:33]} 49. Ra1 {[%clk 0:00:29]}  a5 {[%clk 0:00:25]} 50. Rb1 {[%clk 0:00:29]}  Ba6 {[%clk 0:00:26]} 51. Ke3 {[%clk 0:00:29]}  Kc5 {[%clk 0:00:24]} 52. Ne6+ {[%clk 0:00:29]}  Kd6 {[%clk 0:00:23]} 53. Kd4 {[%clk 0:00:29]}  a4 {[%clk 0:00:23]} 54. Nc5 {[%clk 0:00:29]}  Ra8 {[%clk 0:00:22]} 55. Rf1 {[%clk 0:00:29]}  Ke7 {[%clk 0:00:21]} 56. e5 {[%clk 0:00:28]}  fxe5+ {[%clk 0:00:19]} 57. Kxe5 {[%clk 0:00:29]}  Bc8 {[%clk 0:00:18]} 58. d6+ {[%clk 0:00:30]}  Ke8 {[%clk 0:00:19]} 59. Kd5 {[%clk 0:00:27]}  a3 {[%clk 0:00:18]} 60. Ra1 {[%clk 0:00:27]}  Bd7 {[%clk 0:00:15]} 61. Ne4 {[%clk 0:00:24]}  a2 {[%clk 0:00:15]} 62. Nf6+ {[%clk 0:00:23]}  Kd8 {[%clk 0:00:15]} 63. Kc5 {[%clk 0:00:23]}  Ra6 {[%clk 0:00:15]} 64. Nd5 {[%clk 0:00:23]}  Rc6+ {[%clk 0:00:14]} 65. Kxb5 {[%clk 0:00:19]}  Rxd6+ {[%clk 0:00:14]} 66. Kc5 {[%clk 0:00:19]}  Ra6 {[%clk 0:00:14]} 67. Nb4 {[%clk 0:00:19]}  Ra3 {[%clk 0:00:12]} 68. Kd4 {[%clk 0:00:17]}  Be6 {[%clk 0:00:09]} 69. Rxa2 {[%clk 0:00:17]}  Rxa2 {[%clk 0:00:09]} 70. Nxa2 {[%clk 0:00:18]}  Ke7 {[%clk 0:00:10]} 71. Ke5 {[%clk 0:00:18]}  Bf5 {[%clk 0:00:08]} 72. Nb4 {[%clk 0:00:18]}  Kd7 {[%clk 0:00:08]} 73. Nd5 {[%clk 0:00:18]}  Bd3 {[%clk 0:00:07]} 74. Nf4 {[%clk 0:00:17]}  Ke7 {[%clk 0:00:05]} 75. g3 {[%clk 0:00:18]}  Bf1 {[%clk 0:00:05]} 76. Nd5+ {[%clk 0:00:18]}  Kf7 {[%clk 0:00:06]} 77. Ne3 {[%clk 0:00:18]}  Bd3 {[%clk 0:00:07]} 78. Ng2 {[%clk 0:00:18]}  Kg7 {[%clk 0:00:05]} 79. Nf4 {[%clk 0:00:18]}  Bf1 {[%clk 0:00:06]} 80. Ne6+ {[%clk 0:00:19]}  Kh6 {[%clk 0:00:06]} 81. Kf6 {[%clk 0:00:18]}  Bd3 {[%clk 0:00:07]} 82. Ng5 {[%clk 0:00:18]}  Bb1 {[%clk 0:00:07]} 83. Nf7+ {[%clk 0:00:19]}  Kh7 {[%clk 0:00:08]} 84. Ne5 {[%clk 0:00:19]}  Bd3 {[%clk 0:00:08]} 85. Nc6 {[%clk 0:00:17]}  Kh6 {[%clk 0:00:09]} 86. Ne7 {[%clk 0:00:17]}  Kh7 {[%clk 0:00:10]} 87. Nd5 {[%clk 0:00:17]}  Kh6 {[%clk 0:00:10]} 88. Nf4 {[%clk 0:00:17]}  Bc2 {[%clk 0:00:10]} 89. Ne6 {[%clk 0:00:18]}  Bd3 {[%clk 0:00:11]} 90. Ke5 {[%clk 0:00:18]}  Bc2 {[%clk 0:00:10]} 91. Kd4 {[%clk 0:00:18]}  Bd3 {[%clk 0:00:11]} 92. Kd5 {[%clk 0:00:17]}  Bf1 {[%clk 0:00:10]} 93. Ng5 {[%clk 0:00:16]}  Bd3 {[%clk 0:00:10]} 94. Nf3 {[%clk 0:00:14]}  Be2 {[%clk 0:00:09]} 95. Ne5 {[%clk 0:00:14]}  g5 {[%clk 0:00:10]} 96. Nf7+ {[%clk 0:00:14]}  Kg6 {[%clk 0:00:10]} 97. Nxg5 {[%clk 0:00:12]}  Kf5 {[%clk 0:00:10]} 98. Kd4 {[%clk 0:00:11]}  Kg4 {[%clk 0:00:10]} 99. Ne4 {[%clk 0:00:11]}  Bd3 {[%clk 0:00:09]} 100. Nf6+ {[%clk 0:00:11]}  Kxg3 {[%clk 0:00:09]} 101. Nxh5+ {[%clk 0:00:11]}  Kxh4 {[%clk 0:00:10]} 102. Nf4 {[%clk 0:00:10]}  Bf1 {[%clk 0:00:10]} 103. Ng6+ {[%clk 0:00:10]}  Kg5 {[%clk 0:00:10]} 104. Ne5 {[%clk 0:00:10]}  Kf6 {[%clk 0:00:10]} 105. Nxc4 {[%clk 0:00:11]}  Ke7 {[%clk 0:00:11]} 106. Ne5 {[%clk 0:00:11]}  Ba6 {[%clk 0:00:11]} 107. Kc5 {[%clk 0:00:11]}  Ke6 {[%clk 0:00:11]} 108. Nc6 {[%clk 0:00:11]}  Bf1 {[%clk 0:00:11]} 109. Nd4+ {[%clk 0:00:12]}  Kd7 {[%clk 0:00:12]} 110. Kd5 {[%clk 0:00:12]}  Bd3 {[%clk 0:00:12]} 111. Nf3 {[%clk 0:00:11]}  Bf1 {[%clk 0:00:12]} 112. Ne5+ {[%clk 0:00:12]}  Kc7 {[%clk 0:00:13]} 113. Kc5 {[%clk 0:00:13]}  Be2 {[%clk 0:00:13]} 114. Ng6 {[%clk 0:00:13]}  Bf1 {[%clk 0:00:14]} 115. Nf4 {[%clk 0:00:13]}  Kd7 {[%clk 0:00:14]} 116. Nd5 {[%clk 0:00:14]}  Be2 {[%clk 0:00:14]} 117. Nb6+ {[%clk 0:00:14]}  Kc7 {[%clk 0:00:14]} 118. Na4 {[%clk 0:00:15]}  Bf1 {[%clk 0:00:15]} 119. Nb2 {[%clk 0:00:15]}  Kb7 {[%clk 0:00:15]} 120. Kd4 {[%clk 0:00:16]}  Kc7 {[%clk 0:00:15]} 121. Nd3 {[%clk 0:00:16]}  Bxd3 {[%clk 0:00:15]} 122. Kxd3 {[%clk 0:00:17]}  Kd7 {[%clk 0:00:16]} 123. Ke4 {[%clk 0:00:13]}  Ke6 {[%clk 0:00:16]} 124. Kd4 {[%clk 0:00:13]}  Kd6 {[%clk 0:00:16]} 125. Kc4 {[%clk 0:00:14]}  Kc6 {[%clk 0:00:17]} 126. Kb4 {[%clk 0:00:14]}  Kb6 {[%clk 0:00:18]} 127. c4 {[%clk 0:00:15]}  Kc6 {[%clk 0:00:18]} 128. c5 {[%clk 0:00:16]}  Kc7 {[%clk 0:00:19]} 129. Kc4 {[%clk 0:00:16]}  Kc6 {[%clk 0:00:19]} 130. Kd4 {[%clk 0:00:17]}  Kc7 {[%clk 0:00:20]} 131. Kd5 {[%clk 0:00:17]}  Kd7 {[%clk 0:00:21]} 132. c6+ {[%clk 0:00:18]}  Kc7 {[%clk 0:00:22]} 133. Kc5 {[%clk 0:00:19]}  Kc8 {[%clk 0:00:22]} 134. Kd6 {[%clk 0:00:20]}  Kd8 {[%clk 0:00:23]} 135. c7+ {[%clk 0:00:21]}  Kc8 {[%clk 0:00:24]} 136. Kc6 {[%clk 0:00:22]} 1/2-1/2


[Site "https://www.chess.com"]

[Event "Titled Tuesday Blitz August 09 Early 2022"]
[White "Drygalov, Sergey"]
[Black "Samadov, Read"]
[WhiteFideId "24171743"]
[BlackFideId "13417444"]
[WhiteElo "2523"]
[BlackElo "2084"]
[Result "1-0"]
[Round "07"]
[TimeControl "180+1"]
[Date "2022.08.09"]
[WhiteClock "0:01:15"]
[BlackClock "0:00:05"]

1. d4 {[%clk 0:03:00]}  Nf6 {[%clk 0:02:59]} 2. c4 {[%clk 0:03:01]}  e6 {[%clk 0:02:59]} 3. Nf3 {[%clk 0:03:01]}  d5 {[%clk 0:02:59]} 4. Nc3 {[%clk 0:03:02]}  Bb4 {[%clk 0:02:58]} 5. Qa4+ {[%clk 0:03:00]}  Nc6 {[%clk 0:02:58]} 6. e3 {[%clk 0:03:01]}  O-O {[%clk 0:02:57]} 7. Qc2 {[%clk 0:03:01]}  dxc4 {[%clk 0:02:57]} 8. Bxc4 {[%clk 0:03:01]}  Bd6 {[%clk 0:02:57]} 9. O-O {[%clk 0:03:00]}  a6 {[%clk 0:02:58]} 10. a3 {[%clk 0:02:58]}  e5 {[%clk 0:02:58]} 11. h3 {[%clk 0:02:59]}  exd4 {[%clk 0:02:51]} 12. exd4 {[%clk 0:02:59]}  b5 {[%clk 0:02:36]} 13. Ba2 {[%clk 0:02:49]}  Bb7 {[%clk 0:02:29]} 14. Rd1 {[%clk 0:02:47]}  Ne7 {[%clk 0:02:27]} 15. Ne5 {[%clk 0:02:47]}  Ned5 {[%clk 0:02:26]} 16. Bg5 {[%clk 0:02:46]}  Nxc3 {[%clk 0:02:19]} 17. bxc3 {[%clk 0:02:44]}  Be7 {[%clk 0:02:18]} 18. a4 {[%clk 0:02:38]}  Nd5 {[%clk 0:02:13]} 19. Bd2 {[%clk 0:02:25]}  Bd6 {[%clk 0:02:07]} 20. Re1 {[%clk 0:02:25]}  c5 {[%clk 0:01:40]} 21. Qf5 {[%clk 0:02:14]}  c4 {[%clk 0:01:35]} 22. Bb1 {[%clk 0:02:07]}  g6 {[%clk 0:01:34]} 23. Qg4 {[%clk 0:02:07]}  Nf6 {[%clk 0:01:31]} 24. Qh4 {[%clk 0:01:51]}  Nh5 {[%clk 0:01:07]} 25. Bg5 {[%clk 0:01:50]}  f6 {[%clk 0:01:07]} 26. Nxg6 {[%clk 0:01:29]}  hxg6 {[%clk 0:01:06]} 27. Bxg6 {[%clk 0:01:29]}  fxg5 {[%clk 0:01:06]} 28. Qxh5 {[%clk 0:01:30]}  Qd7 {[%clk 0:01:06]} 29. Re6 {[%clk 0:01:20]}  Bf4 {[%clk 0:00:17]} 30. Rae1 {[%clk 0:01:20]}  Rf7 {[%clk 0:00:05]} 31. Bxf7+ {[%clk 0:01:15]}  Qxf7 {[%clk 0:00:05]} 32. Rg6+ {[%clk 0:01:15]} 1-0


[Site "https://www.chess.com"]

[Event "Titled Tuesday Blitz August 09 Early 2022"]
[White "Eynullayev, Altay"]
[Black "Melaugh, Shane"]
[WhiteFideId "13413562"]
[BlackFideId "2509580"]
[WhiteElo "2079"]
[BlackElo "1946"]
[Result "1-0"]
[Round "07"]
[TimeControl "180+1"]
[Date "2022.08.09"]
[WhiteClock "0:01:44"]
[BlackClock "0:01:12"]

1. e4 {[%clk 0:03:00]}  c5 {[%clk 0:03:00]} 2. Nf3 {[%clk 0:03:01]}  Nc6 {[%clk 0:03:00]} 3. Bb5 {[%clk 0:03:00]}  g6 {[%clk 0:03:00]} 4. Bxc6 {[%clk 0:03:01]}  dxc6 {[%clk 0:03:01]} 5. d3 {[%clk 0:03:01]}  Bg7 {[%clk 0:03:01]} 6. h3 {[%clk 0:03:01]}  e5 {[%clk 0:03:02]} 7. Nc3 {[%clk 0:03:02]}  Nh6 {[%clk 0:03:00]} 8. Be3 {[%clk 0:03:02]}  b6 {[%clk 0:03:00]} 9. Qd2 {[%clk 0:03:01]}  Ng8 {[%clk 0:02:59]} 10. O-O {[%clk 0:03:01]}  Ne7 {[%clk 0:02:52]} 11. Nh2 {[%clk 0:03:00]}  O-O {[%clk 0:02:52]} 12. f4 {[%clk 0:03:01]}  exf4 {[%clk 0:02:48]} 13. Bxf4 {[%clk 0:03:02]}  Be6 {[%clk 0:02:40]} 14. Bh6 {[%clk 0:02:56]}  c4 {[%clk 0:02:36]} 15. Bxg7 {[%clk 0:02:55]}  Kxg7 {[%clk 0:02:35]} 16. d4 {[%clk 0:02:55]}  b5 {[%clk 0:02:31]} 17. Rad1 {[%clk 0:02:48]}  f5 {[%clk 0:02:25]} 18. Nf3 {[%clk 0:02:37]}  b4 {[%clk 0:02:22]} 19. Ng5 {[%clk 0:02:34]}  Qd6 {[%clk 0:02:04]} 20. Ne2 {[%clk 0:02:30]}  fxe4 {[%clk 0:02:00]} 21. Nxe4 {[%clk 0:02:26]}  Qd5 {[%clk 0:01:52]} 22. Qxb4 {[%clk 0:02:25]}  Nf5 {[%clk 0:01:51]} 23. N2c3 {[%clk 0:02:19]}  Qd7 {[%clk 0:01:44]} 24. Nc5 {[%clk 0:02:18]}  Qf7 {[%clk 0:01:36]} 25. Nxe6+ {[%clk 0:02:14]}  Qxe6 {[%clk 0:01:37]} 26. Rfe1 {[%clk 0:02:07]}  Qf7 {[%clk 0:01:33]} 27. Qc5 {[%clk 0:01:48]}  Ne3 {[%clk 0:01:18]} 28. Qe5+ {[%clk 0:01:45]}  Qf6 {[%clk 0:01:12]} 29. Qxf6+ {[%clk 0:01:43]}  Rxf6 {[%clk 0:01:12]} 30. Rxe3 {[%clk 0:01:44]} 1-0


[Site "https://www.chess.com"]

[Event "Titled Tuesday Blitz August 09 Early 2022"]
[White "Fajdetic, Hrvoje"]
[Black "Flynn, Jacob"]
[WhiteFideId "14501945"]
[BlackFideId "2509393"]
[WhiteElo "2172"]
[BlackElo "1920"]
[Result "1-0"]
[Round "07"]
[TimeControl "180+1"]
[Date "2022.08.09"]
[WhiteClock "0:00:13"]
[BlackClock "0:00:15"]

1. b3 {[%clk 0:02:57]}  d5 {[%clk 0:02:59]} 2. Bb2 {[%clk 0:02:57]}  Bg4 {[%clk 0:02:59]} 3. h3 {[%clk 0:02:52]}  Bh5 {[%clk 0:02:59]} 4. g4 {[%clk 0:02:53]}  Bg6 {[%clk 0:02:59]} 5. f4 {[%clk 0:02:52]}  e5 {[%clk 0:02:47]} 6. Bg2 {[%clk 0:02:29]}  exf4 {[%clk 0:02:43]} 7. Nf3 {[%clk 0:02:15]}  Nf6 {[%clk 0:02:40]} 8. O-O {[%clk 0:02:06]}  Bd6 {[%clk 0:02:36]} 9. c4 {[%clk 0:02:01]}  c6 {[%clk 0:02:31]} 10. Nc3 {[%clk 0:01:58]}  O-O {[%clk 0:02:27]} 11. Nh4 {[%clk 0:01:47]}  Be4 {[%clk 0:02:14]} 12. cxd5 {[%clk 0:01:32]}  cxd5 {[%clk 0:02:10]} 13. d3 {[%clk 0:01:06]}  Bxg2 {[%clk 0:02:04]} 14. Nxg2 {[%clk 0:01:06]}  d4 {[%clk 0:01:49]} 15. Nb5 {[%clk 0:00:51]}  Nd5 {[%clk 0:01:38]} 16. Nxd4 {[%clk 0:00:46]}  Nd7 {[%clk 0:01:27]} 17. Nf5 {[%clk 0:00:44]}  Bc5+ {[%clk 0:01:19]} 18. d4 {[%clk 0:00:42]}  Bb6 {[%clk 0:01:13]} 19. Nxf4 {[%clk 0:00:40]}  N7f6 {[%clk 0:01:08]} 20. Nxd5 {[%clk 0:00:27]}  Nxd5 {[%clk 0:00:45]} 21. e4 {[%clk 0:00:26]}  Nf6 {[%clk 0:00:43]} 22. Qf3 {[%clk 0:00:22]}  Rc8 {[%clk 0:00:25]} 23. Kh1 {[%clk 0:00:15]}  Rc2 {[%clk 0:00:18]} 24. Ba3 {[%clk 0:00:15]}  Re8 {[%clk 0:00:18]} 25. e5 {[%clk 0:00:14]}  Nd5 {[%clk 0:00:17]} 26. Nd6 {[%clk 0:00:06]}  Rf8 {[%clk 0:00:08]} 27. Qxd5 {[%clk 0:00:06]}  Rd2 {[%clk 0:00:08]} 28. Rxf7 {[%clk 0:00:05]}  Rxf7 {[%clk 0:00:05]} 29. Qxf7+ {[%clk 0:00:06]}  Kh8 {[%clk 0:00:05]} 30. Rf1 {[%clk 0:00:07]}  h6 {[%clk 0:00:04]} 31. Qf4 {[%clk 0:00:06]}  Rxd4 {[%clk 0:00:04]} 32. Qxd4 {[%clk 0:00:05]}  Bxd4 {[%clk 0:00:03]} 33. Nf7+ {[%clk 0:00:06]}  Kh7 {[%clk 0:00:04]} 34. Nxd8 {[%clk 0:00:06]}  Bxe5 {[%clk 0:00:04]} 35. Ne6 {[%clk 0:00:06]}  Bf6 {[%clk 0:00:04]} 36. Rxf6 {[%clk 0:00:06]}  gxf6 {[%clk 0:00:04]} 37. Kg2 {[%clk 0:00:06]}  Kg6 {[%clk 0:00:04]} 38. Kf3 {[%clk 0:00:07]}  f5 {[%clk 0:00:05]} 39. gxf5+ {[%clk 0:00:07]}  Kxf5 {[%clk 0:00:06]} 40. Nc5 {[%clk 0:00:07]}  b6 {[%clk 0:00:06]} 41. Nd7 {[%clk 0:00:06]}  b5 {[%clk 0:00:05]} 42. Bc5 {[%clk 0:00:05]}  a5 {[%clk 0:00:06]} 43. a3 {[%clk 0:00:04]}  Ke6 {[%clk 0:00:05]} 44. Nf8+ {[%clk 0:00:04]}  Kd5 {[%clk 0:00:05]} 45. b4 {[%clk 0:00:04]}  axb4 {[%clk 0:00:04]} 46. axb4 {[%clk 0:00:05]}  Ke5 {[%clk 0:00:04]} 47. Kg4 {[%clk 0:00:06]}  Kf6 {[%clk 0:00:03]} 48. Kh5 {[%clk 0:00:06]}  Kg7 {[%clk 0:00:04]} 49. Ne6+ {[%clk 0:00:07]}  Kf6 {[%clk 0:00:04]} 50. Nc7 {[%clk 0:00:08]}  Ke5 {[%clk 0:00:02]} 51. Nxb5 {[%clk 0:00:09]}  Kd5 {[%clk 0:00:02]} 52. Nc3+ {[%clk 0:00:09]}  Kc6 {[%clk 0:00:03]} 53. Kxh6 {[%clk 0:00:09]}  Kb7 {[%clk 0:00:04]} 54. Kg6 {[%clk 0:00:10]}  Kc6 {[%clk 0:00:05]} 55. h4 {[%clk 0:00:10]}  Kb7 {[%clk 0:00:06]} 56. h5 {[%clk 0:00:11]}  Kc6 {[%clk 0:00:07]} 57. h6 {[%clk 0:00:12]}  Kb7 {[%clk 0:00:08]} 58. h7 {[%clk 0:00:13]}  Kc6 {[%clk 0:00:09]} 59. h8=Q {[%clk 0:00:14]}  Kb7 {[%clk 0:00:10]} 60. Qh5 {[%clk 0:00:14]}  Ka6 {[%clk 0:00:11]} 61. Bd4 {[%clk 0:00:14]}  Kb7 {[%clk 0:00:11]} 62. Qb5+ {[%clk 0:00:14]}  Ka8 {[%clk 0:00:12]} 63. Bh8 {[%clk 0:00:12]}  Ka7 {[%clk 0:00:12]} 64. Kf6 {[%clk 0:00:12]}  Ka8 {[%clk 0:00:12]} 65. Ke6 {[%clk 0:00:13]}  Ka7 {[%clk 0:00:13]} 66. Kd6 {[%clk 0:00:13]}  Ka8 {[%clk 0:00:14]} 67. Kc7 {[%clk 0:00:13]}  Ka7 {[%clk 0:00:15]} 1-0


[Site "https://www.chess.com"]

[Event "Titled Tuesday Blitz August 09 Early 2022"]
[White "Garriga Cazorla, Pere"]
[Black "Wieczorek, Oskar"]
[WhiteFideId "32011601"]
[BlackFideId "1133950"]
[WhiteElo "2365"]
[BlackElo "2302"]
[Result "1-0"]
[Round "07"]
[TimeControl "180+1"]
[Date "2022.08.09"]
[WhiteClock "0:01:32"]
[BlackClock "0:00:01"]

1. d4 {[%clk 0:03:00]}  Nf6 {[%clk 0:03:00]} 2. c4 {[%clk 0:02:59]}  c5 {[%clk 0:03:00]} 3. d5 {[%clk 0:02:57]}  g6 {[%clk 0:03:00]} 4. Nc3 {[%clk 0:02:57]}  d6 {[%clk 0:03:01]} 5. e4 {[%clk 0:02:58]}  Bg7 {[%clk 0:03:01]} 6. h3 {[%clk 0:02:58]}  O-O {[%clk 0:03:02]} 7. Bd3 {[%clk 0:02:59]}  e6 {[%clk 0:03:02]} 8. Nf3 {[%clk 0:02:59]}  Na6 {[%clk 0:03:03]} 9. O-O {[%clk 0:02:59]}  Nc7 {[%clk 0:03:04]} 10. Bg5 {[%clk 0:02:56]}  h6 {[%clk 0:03:00]} 11. Be3 {[%clk 0:02:56]}  exd5 {[%clk 0:03:01]} 12. exd5 {[%clk 0:02:55]}  b5 {[%clk 0:03:01]} 13. cxb5 {[%clk 0:02:53]}  Ncxd5 {[%clk 0:03:00]} 14. Nxd5 {[%clk 0:02:49]}  Nxd5 {[%clk 0:03:01]} 15. Bd2 {[%clk 0:02:46]}  Bb7 {[%clk 0:02:53]} 16. a4 {[%clk 0:02:45]}  Rc8 {[%clk 0:02:34]} 17. Re1 {[%clk 0:02:43]}  Kh7 {[%clk 0:02:21]} 18. Rb1 {[%clk 0:02:41]}  c4 {[%clk 0:02:17]} 19. Be4 {[%clk 0:02:39]}  Re8 {[%clk 0:01:50]} 20. Bxd5 {[%clk 0:02:23]}  Bxd5 {[%clk 0:01:50]} 21. Bc3 {[%clk 0:02:24]}  Rxe1+ {[%clk 0:01:39]} 22. Nxe1 {[%clk 0:02:23]}  Be4 {[%clk 0:01:34]} 23. Rc1 {[%clk 0:02:23]}  d5 {[%clk 0:01:17]} 24. Bxg7 {[%clk 0:02:17]}  Kxg7 {[%clk 0:01:18]} 25. f3 {[%clk 0:02:18]}  Bf5 {[%clk 0:01:05]} 26. Qd4+ {[%clk 0:02:17]}  Qf6 {[%clk 0:01:05]} 27. Rd1 {[%clk 0:02:11]}  Qxd4+ {[%clk 0:00:25]} 28. Rxd4 {[%clk 0:02:12]}  c3 {[%clk 0:00:14]} 29. bxc3 {[%clk 0:02:12]}  Rxc3 {[%clk 0:00:15]} 30. g4 {[%clk 0:01:59]}  Be6 {[%clk 0:00:08]} 31. Kf2 {[%clk 0:01:59]}  Kf6 {[%clk 0:00:08]} 32. Nd3 {[%clk 0:01:57]}  Ke7 {[%clk 0:00:07]} 33. h4 {[%clk 0:01:56]}  Kd6 {[%clk 0:00:07]} 34. Ke3 {[%clk 0:01:54]}  Ra3 {[%clk 0:00:03]} 35. Rb4 {[%clk 0:01:51]}  Kc7 {[%clk 0:00:01]} 36. Kd4 {[%clk 0:01:47]}  Kb6 {[%clk 0:00:01]} 37. Ne5 {[%clk 0:01:38]}  Ka5 {[%clk 0:00:01]} 38. Nc6+ {[%clk 0:01:37]}  Kb6 {[%clk 0:00:01]} 39. a5+ {[%clk 0:01:32]} 1-0


[Site "https://www.chess.com"]

[Event "Titled Tuesday Blitz August 09 Early 2022"]
[White "Hambleton, Aman"]
[Black "Dubov, Daniil"]
[WhiteFideId "2606577"]
[BlackFideId "24126055"]
[WhiteElo "2538"]
[BlackElo "2791"]
[Result "0-1"]
[Round "07"]
[TimeControl "180+1"]
[Date "2022.08.09"]
[WhiteClock "0:00:01"]
[BlackClock "0:00:07"]

1. d4 {[%clk 0:03:00]}  Nf6 {[%clk 0:02:59]} 2. c4 {[%clk 0:02:56]}  e6 {[%clk 0:02:55]} 3. Nc3 {[%clk 0:02:55]}  d5 {[%clk 0:02:38]} 4. cxd5 {[%clk 0:02:53]}  exd5 {[%clk 0:02:39]} 5. Bg5 {[%clk 0:02:52]}  c6 {[%clk 0:02:35]} 6. e3 {[%clk 0:02:52]}  h6 {[%clk 0:02:35]} 7. Bh4 {[%clk 0:02:48]}  Be7 {[%clk 0:02:35]} 8. Bd3 {[%clk 0:02:47]}  O-O {[%clk 0:02:35]} 9. Qc2 {[%clk 0:02:37]}  Re8 {[%clk 0:02:33]} 10. Nge2 {[%clk 0:02:36]}  Nbd7 {[%clk 0:02:30]} 11. O-O {[%clk 0:02:35]}  Nh5 {[%clk 0:02:25]} 12. Bxe7 {[%clk 0:02:31]}  Qxe7 {[%clk 0:02:26]} 13. Rae1 {[%clk 0:01:46]}  Ndf6 {[%clk 0:02:17]} 14. Nc1 {[%clk 0:01:24]}  Bd7 {[%clk 0:02:04]} 15. f3 {[%clk 0:01:21]}  g6 {[%clk 0:01:57]} 16. Nb3 {[%clk 0:00:46]}  Rad8 {[%clk 0:01:38]} 17. Qd2 {[%clk 0:00:46]}  Be6 {[%clk 0:01:23]} 18. Bb1 {[%clk 0:00:37]}  Ng7 {[%clk 0:00:58]} 19. Nc5 {[%clk 0:00:30]}  Bf5 {[%clk 0:00:52]} 20. Nd3 {[%clk 0:00:18]}  Bxd3 {[%clk 0:00:51]} 21. Bxd3 {[%clk 0:00:17]}  h5 {[%clk 0:00:48]} 22. Qf2 {[%clk 0:00:16]}  Ne6 {[%clk 0:00:46]} 23. Rd1 {[%clk 0:00:14]}  a6 {[%clk 0:00:44]} 24. Rfe1 {[%clk 0:00:14]}  Rd7 {[%clk 0:00:41]} 25. Bc2 {[%clk 0:00:13]}  c5 {[%clk 0:00:38]} 26. dxc5 {[%clk 0:00:12]}  Qxc5 {[%clk 0:00:39]} 27. Bb3 {[%clk 0:00:03]}  Kg7 {[%clk 0:00:37]} 28. e4 {[%clk 0:00:02]}  dxe4 {[%clk 0:00:21]} 29. Nxe4 {[%clk 0:00:02]}  Rxd1 {[%clk 0:00:16]} 30. Rxd1 {[%clk 0:00:02]}  Nxe4 {[%clk 0:00:16]} 31. fxe4 {[%clk 0:00:02]}  Qxf2+ {[%clk 0:00:13]} 32. Kxf2 {[%clk 0:00:03]}  Nc5 {[%clk 0:00:14]} 33. Bd5 {[%clk 0:00:02]}  Nxe4+ {[%clk 0:00:14]} 34. Bxe4 {[%clk 0:00:02]}  Rxe4 {[%clk 0:00:13]} 35. Rd7 {[%clk 0:00:03]}  Rb4 {[%clk 0:00:14]} 36. b3 {[%clk 0:00:03]}  h4 {[%clk 0:00:12]} 37. Kf3 {[%clk 0:00:03]}  g5 {[%clk 0:00:12]} 38. g3 {[%clk 0:00:02]}  Kg6 {[%clk 0:00:08]} 39. Rd6+ {[%clk 0:00:01]}  f6 {[%clk 0:00:09]} 40. Rd7 {[%clk 0:00:01]}  Kf5 {[%clk 0:00:06]} 41. Rd5+ {[%clk 0:00:01]}  Ke6 {[%clk 0:00:06]} 42. Rd8 {[%clk 0:00:02]}  hxg3 {[%clk 0:00:06]} 43. hxg3 {[%clk 0:00:02]}  Rb6 {[%clk 0:00:07]} 44. Ke3 {[%clk 0:00:02]}  Rd6 {[%clk 0:00:06]} 45. Rb8 {[%clk 0:00:02]}  Rd7 {[%clk 0:00:07]} 46. Re8+ {[%clk 0:00:02]}  Kf5 {[%clk 0:00:07]} 47. Rb8 {[%clk 0:00:02]}  Kg4 {[%clk 0:00:07]} 48. Rf8 {[%clk 0:00:01]}  f5 {[%clk 0:00:07]} 0-1


[Site "https://www.chess.com"]